fUSD/lending_fUSD_20260213
["ID","MTS","AMOUNT","RATE_DAILY","PERIOD"]
[405298383,1770969033068,-678.69,9.071e-05,2]
[405298384,1770969033078,-250.0,9.151e-05,2]
[405298385,1770969033088,-433.0,9.174e-05,2]
[405298386,1770969033099,-587.0,9.174e-05,2]
[405298387,1770969033109,-2351.0,9.174e-05,2]
[405298388,1770969033120,-500.0,9.195e-05,2]
[405298389,1770969033130,-166.67,9.206e-05,2]
[405298390,1770969033140,-678.69,9.221e-05,2]
[405298391,1770969033150,-402.31,9.341e-05,2]
[405298392,1770969033161,-228.45,9.348e-05,2]
[405298393,1770969033171,-205.56,9.352e-05,2]
[405298394,1770969033180,-678.69,9.372e-05,2]
[405298395,1770969033195,-500.0,9.469e-05,2]
[405298396,1770969033206,-361.24975585,9.47e-05,2]
[405298397,1770969033215,-678.69,9.522e-05,2]
[405298398,1770969033226,-500.0,9.569e-05,2]
[405298399,1770969033236,-513.91529365,9.569e-05,2]
[405298400,1770969033247,-500.0,9.569e-05,2]
[405298401,1770969033256,-500.0,9.569e-05,2]
[405298402,1770969033266,-223.15216843,9.569e-05,2]
[405298403,1770969033276,-521928.59075154,9.57e-05,2]
[405298404,1770969033290,-165267.59096936,9.57e-05,2]
[405298405,1770969033303,-258098.3974249,9.57e-05,2]
[405298406,1770969033314,-40684.04312246,9.57e-05,2]
[405298407,1770969038281,-323.48866768,9.569e-05,2]
[405298408,1770969038291,-533.53287765,9.57e-05,2]
[405298409,1770969038303,-513487.84485409,9.57e-05,2]
[405298410,1770969038313,-200.0,9.625e-05,2]
[405298411,1770969038322,-9999.99,9.67e-05,2]
[405298412,1770969038332,-500.0,9.743e-05,2]
[405298413,1770969038341,-250.0,9.904e-05,2]
[405298414,1770969038351,-166.67,9.908e-05,2]
[405298415,1770969038360,-398.53,9.922e-05,2]
[405298416,1770969038370,-325.38,9.945e-05,2]
[405298417,1770969038379,-241.87,9.965e-05,2]
[405298418,1770969038389,-259.7041,9.982e-05,2]
[405298419,1770969038398,-8221.2307,9.982e-05,2]
[405298420,1770969038407,-6734.8376,9.982e-05,2]
[405298421,1770969038417,-446591.3351875,9.983e-05,2]
[405298422,1770969038426,-200.0,0.0001,2]
[405298423,1770969038437,-200.0,0.0001,2]
[405298424,1770969038447,-500.0,0.0001,3]
[405298425,1770969038457,-200.0,0.0001,2]
[405298426,1770969038467,-500.0,0.0001,2]
[405298427,1770969038477,-165.46002286,0.0001,2]
[405298428,1770969038486,-232.78327733,0.0001,2]
[405298429,1770969038496,-232.78327733,0.0001,2]
[405298430,1770969038505,-232.78327733,0.0001,2]
[405298431,1770969038515,-237.28623341,0.0001,2]
[405298432,1770969038524,-762.81646816,0.0001,2]
[405298434,1770969038781,-6703.36655457,0.0001,2]
[405298435,1770969038791,-200.0,0.0001,2]
[405298436,1770969038801,-805.8910292,0.0001,2]
[405298437,1770969038811,-2084.57169634,0.0001,2]
[405298438,1770969038820,-500.0,0.00010017,2]
[405298439,1770969038830,-278.4891,0.00010082,2]
[405298440,1770969038840,-32832.125,0.00010082,2]
[405298441,1770969038850,-1000.0,0.00010082,2]
[405298442,1770969038859,-599.6611,0.00010082,2]
[405298443,1770969038869,-2500.0,0.00010082,2]
[405298444,1770969038878,-736.0,0.00010092,2]
[405298445,1770969038888,-823.0,0.00010092,2]
[405298446,1770969038897,-3292.0,0.00010092,2]
[405298447,1770969038907,-195.53600733,0.000101,2]
[405298448,1770969038916,-269.5,0.00010181,2]
[405298449,1770969038926,-18396.7480132,0.00010182,2]
[405298450,1770969038936,-500.0,0.00010291,2]
[405298451,1770969038946,-162.602,0.00010414,2]
[405298452,1770969038956,-1350.099,0.00010414,2]
[405298453,1770969038967,-623.675,0.00010414,2]
[405298454,1770969038977,-3524.786,0.00010414,2]
[405298455,1770969038987,-1288.0,0.00010414,2]
[405298456,1770969038997,-150.223,0.00010414,2]
[405298457,1770969039007,-1289.162,0.00010414,2]
[405298458,1770969039017,-1208.0,0.00010414,2]
[405298459,1770969039027,-919.993,0.00010414,2]
[405298460,1770969039037,-418.979,0.00010414,2]
[405298461,1770969039047,-2450.0,0.00010414,2]
[405298462,1770969039056,-397.0,0.00010419,2]
[405298463,1770969039066,-269.5,0.00010455,2]
[405298464,1770969039076,-1002.68603693,0.00010501,2]
[405298465,1770969039086,-241.87,0.00010518,2]
[405298466,1770969039096,-200.0,0.00010548,2]
[405298467,1770969039106,-200.0,0.00010548,2]
[405298468,1770969039116,-500.0,0.00010565,2]
[405298469,1770969039126,-156.028,0.000107,2]
[405298470,1770969039137,-892.524,0.000107,2]
[405298471,1770969039147,-269.5,0.00010729,2]
[405298472,1770969039157,-200.0,0.00010795,2]
[405298473,1770969039167,-150.0,0.00010811,2]
[405298474,1770969039177,-500.0,0.00010811,2]
[405298475,1770969039187,-150.0,0.00010811,2]
[405298476,1770969039197,-150.0,0.00010811,2]
[405298477,1770969039208,-150.0,0.00010811,2]
[405298478,1770969039218,-500.0,0.00010811,2]
[405298479,1770969039227,-500.0,0.00010811,2]
[405298480,1770969039237,-150.0,0.00010811,2]
[405298481,1770969039247,-150.0,0.00010811,2]
[405298482,1770969039257,-163.74427011,0.00010811,2]
[405298483,1770969039267,-150.0,0.00010811,2]
[405298484,1770969039277,-150.0,0.00010811,2]
[405298485,1770969039287,-500.0,0.00010811,2]
[405298486,1770969039298,-200.0,0.00010811,2]
[405298487,1770969039308,-500.0,0.00010811,2]
[405298488,1770969039317,-202.17412439,0.00010811,2]
[405298489,1770969039327,-1416.0,0.00010811,2]
[405298490,1770969039337,-150.84470869,0.00010811,2]
[405298491,1770969039347,-150.0,0.00010811,2]
[405298492,1770969039357,-150.0,0.00010811,2]
[405298493,1770969039366,-500.0,0.00010811,2]
[405298494,1770969039376,-500.0,0.00010839,2]
[405298495,1770969039385,-150.0,0.00010866,2]
[405298496,1770969039395,-550.0,0.00010866,2]
[405298497,1770969039405,-150.0,0.00010866,2]
[405298498,1770969039414,-150.0,0.00010866,2]
[405298499,1770969039424,-500.0,0.00010866,2]
[405298500,1770969039433,-500.0,0.00010866,2]
[405298501,1770969039443,-150.0,0.00010866,2]
[405298502,1770969039452,-150.0,0.00010866,2]
[405298503,1770969039461,-150.0,0.00010866,2]
[405298504,1770969039471,-150.0,0.00010866,2]
[405298505,1770969039480,-500.0,0.00010866,2]
[405298506,1770969039490,-500.0,0.00010866,2]
[405298507,1770969039499,-1416.0,0.00010866,2]
[405298508,1770969039508,-150.0,0.00010866,2]
[405298509,1770969039517,-150.0,0.00010866,2]
[405298510,1770969039527,-500.0,0.00010866,2]
[405298511,1770969039539,-1498.0641666,0.00010877,2]
[405298512,1770969039548,-238.0,0.00010894,2]
[405298513,1770969039558,-3076.76234339,0.00010898,2]
[405298514,1770969039567,-3463.42742698,0.00010898,2]
[405298515,1770969039578,-800.0,0.000109,3]
[405298516,1770969039587,-6147.78184036,0.000109,2]
[405298517,1770969039597,-6147.78184035,0.000109,2]
[405298518,1770969039609,-200.0,0.00010903,2]
[405298519,1770969039619,-150.0,0.00010921,2]
[405298520,1770969039628,-150.0,0.00010921,2]
[405298521,1770969039638,-150.0,0.00010921,2]
[405298522,1770969039647,-500.0,0.00010921,2]
[405298523,1770969039656,-400.0,0.00010921,2]
[405298524,1770969039667,-194.23259181,0.00010921,2]
[405298525,1770969039676,-200.0,0.00010921,2]
[405298526,1770969039686,-150.0,0.00010921,2]
[405298527,1770969039695,-250.50360126,0.00010921,2]
[405298528,1770969039705,-500.0,0.00010921,2]
[405298529,1770969039714,-500.0,0.00010921,2]
[405298530,1770969039724,-1416.0,0.00010921,2]
[405298531,1770969039734,-200.0,0.00010921,2]
[405298532,1770969039745,-200.0,0.00010921,2]
[405298533,1770969039755,-500.0,0.00010921,2]
[405298534,1770969039766,-150.0,0.00010959,2]
[405298535,1770969039776,-184.33,0.00010959,2]
[405298536,1770969039787,-300.03626736,0.00010973,2]
[405298537,1770969039796,-250.0,0.00010975,2]
[405298538,1770969039806,-150.0,0.00010975,2]
[405298539,1770969039816,-250.99227331,0.00010975,2]
[405298540,1770969039825,-150.0,0.00010975,2]
[405298541,1770969039835,-500.0,0.00010975,2]
[405298542,1770969039844,-1416.0,0.00010975,2]
[405298543,1770969039855,-500.0,0.00010975,2]
[405298544,1770969039866,-269.5,0.00011003,2]
[405298545,1770969039877,-151.0,0.00011004,2]
[405298546,1770969039887,-200.0,0.00011004,2]
[405298547,1770969039896,-200.0,0.00011004,2]
[405298548,1770969039906,-160.46,0.00011006,2]
[405298549,1770969039916,-491250.4687063,0.00011008,2]
[405298550,1770969039926,-200.0,0.00011012,2]
[405298551,1770969039938,-254.1573711,0.0001103,2]
[405298552,1770969039949,-150.0,0.0001103,2]
[405298553,1770969039959,-500.0,0.0001103,2]
[405298554,1770969039969,-1416.0,0.0001103,2]
[405298555,1770969039978,-500.0,0.0001103,2]
[405298556,1770969039988,-150.0,0.00011039,7]
[405298557,1770969039998,-241.87,0.00011072,2]
[405298558,1770969040008,-250.0,0.00011085,2]
[405298559,1770969040018,-500.0,0.00011085,2]
[405298560,1770969040027,-1416.0,0.00011085,2]
[405298561,1770969040037,-500.0,0.00011085,2]
[405298562,1770969040047,-7000.0,0.00011099,2]
[405298563,1770969040059,-67809.1764659,0.00011099,2]
[405298564,1770969040068,-1252.0,0.000111,2]
[405298565,1770969040080,-1152.0,0.00011101,2]
[405298566,1770969040090,-4609.0,0.00011101,2]
[405298567,1770969040099,-500.0,0.00011113,2]
[405298568,1770969040110,-200.0,0.00011114,2]
[405298569,1770969040119,-200.0,0.00011114,2]
[405298570,1770969040129,-200.0,0.00011122,2]
[405298571,1770969040139,-500.0,0.0001114,2]
[405298572,1770969040148,-1416.0,0.0001114,2]
[405298573,1770969040158,-500.0,0.0001114,2]
[405298574,1770969040168,-166.66,0.00011142,2]
[405298575,1770969040177,-567.0,0.00011195,2]
[405298576,1770969040188,-1416.0,0.00011195,2]
[405298577,1770969040198,-500.0,0.00011195,2]
[405298578,1770969040208,-6147.78184035,0.00011199,2]
[405298579,1770969040218,-200.0,0.00011225,2]
[405298580,1770969040228,-2263.45894517,0.00011232,2]
[405298582,1770969040236,-10397.79,0.00011233,2]
[405298583,1770969040247,-150.0,0.00011233,2]
[405298584,1770969040256,-1668.58678493,0.00011233,2]
[405298585,1770969040265,-200.0,0.00011233,2]
[405298586,1770969040274,-711.93058668,0.00011237,2]
[405298587,1770969040284,-1416.0,0.00011249,2]
[405298588,1770969040295,-574.85741923,0.00011249,2]
[405298589,1770969040304,-269.54344325,0.00011277,2]
[405298590,1770969040313,-2000.0,0.000113,2]
[405298591,1770969040323,-1416.0,0.00011304,2]
[405298592,1770969040333,-166.66,0.00011324,2]
[405298593,1770969040342,-200.0,0.00011337,2]
[405298594,1770969040351,-166.66,0.00011338,2]
[405298595,1770969040360,-1416.0,0.00011359,2]
[405298596,1770969040370,-18396.7480132,0.00011362,2]
[405298597,1770969040379,-155.0,0.00011364,2]
[405298598,1770969040389,-158.0,0.00011368,2]
[405298599,1770969040398,-157.75238177,0.00011387,2]
[405298600,1770969040407,-1416.0,0.00011414,2]
[405298601,1770969040417,-200.0,0.00011451,2]
[405298602,1770969040427,-1416.0,0.00011469,2]
[405298603,1770969040437,-805.8910292,0.000115,2]
[405298604,1770969040447,-166.66,0.00011507,2]
[405298605,1770969040456,-67809.17646588,0.0001151,2]
[405298606,1770969040465,-1416.0,0.00011523,2]
[405298607,1770969040475,-551.80732987,0.00011533,2]
[405298608,1770969040485,-1416.0,0.00011578,2]
[405298609,1770969040495,-241.87,0.00011625,2]
[405298610,1770969040504,-1416.0,0.00011633,2]
[405298611,1770969040514,-1000.0,0.00011679,2]
[405298612,1770969040523,-166.66,0.00011679,2]
[405298613,1770969040533,-1416.0,0.00011688,2]
[405298614,1770969040544,-1416.0,0.00011743,2]
[405298615,1770969040553,-1416.0,0.00011797,2]
[405298616,1770969040562,-1416.0,0.00011852,2]
[405298617,1770969040571,-4508.175656,0.00011855,2]
[405298618,1770969040581,-390.54,0.00011894,2]
[405298619,1770969040591,-1100.0,0.000119,4]
[405298620,1770969040600,-1416.0,0.00011907,2]
[405298621,1770969040613,-535909.6022251,0.00011943,2]
[405298622,1770969040623,-1416.0,0.00011962,2]
[405298623,1770969040633,-783.27192446,0.0001201,2]
[405298624,1770969040644,-1416.0,0.00012016,2]
[405298625,1770969040656,-166.66,0.00012019,2]
[405298626,1770969040668,-22354.97,0.00012055,2]
[405298627,1770969040680,-1428.54213022,0.00012071,2]
[405298628,1770969040690,-150.0,0.00012118,2]
[405298629,1770969040700,-241.87,0.00012179,2]
[405298630,1770969040711,-1613.0,0.00012211,2]
[405298631,1770969040721,-6453.0,0.00012211,2]
[405298632,1770969040731,-2129.0,0.00012215,2]
[405298633,1770969040741,-520.0,0.00012234,2]
[405298634,1770969040751,-67809.17646588,0.00012309,2]
[405298635,1770969040761,-402.31,0.00012326,2]
[405298636,1770969040773,-165.49,0.00012329,4]
[405298637,1770969040783,-501.2,0.00012329,2]
[405298638,1770969040793,-711.93058663,0.00012348,2]
[405298639,1770969040805,-892.84355642,0.000124,2]
[405298640,1770969040815,-205.56,0.00012405,2]
[405298641,1770969040826,-228.45,0.00012409,2]
[405298642,1770969040836,-350.0,0.0001241,2]
[405298643,1770969040846,-2927.298385,0.00012498,2]
[405298644,1770969040856,-350.0,0.000125,2]
[405298645,1770969040867,-308.27277135,0.000125,2]
[405298646,1770969040877,-6147.78184035,0.00012539,2]
[405298647,1770969040887,-18396.7480132,0.00012542,2]
[405298648,1770969040898,-604.71,0.00012586,2]
[405298649,1770969040907,-461.0,0.0001263,2]
[405298650,1770969040917,-241.87,0.00012732,2]
[405298651,1770969040927,-1000.0,0.00012846,2]
[405298652,1770969040936,-312.0,0.00012899,2]
[405298653,1770969040946,-49040.33555894,0.000129,2]
[405298654,1770969040956,-205.54842784,0.00012974,2]
[405298655,1770969040965,-390.54,0.00012975,2]
[405298656,1770969040976,-350.0,0.00012978,2]
[405298657,1770969040986,-5620.89289465,0.00013,2]
[405298658,1770969040996,-958.1361216,0.00013,2]
[405298659,1770969041005,-12563.76949661,0.00013,15]
[405298660,1770969041015,-5360.46702265,0.0001305,2]
[405298661,1770969041025,-350.0,0.00013106,2]
[405298662,1770969041036,-67809.17646588,0.00013107,2]
[405298663,1770969041049,-551.80732987,0.00013125,2]
[405298664,1770969041060,-350.0,0.00013155,2]
[405298665,1770969041073,-276.0,0.00013208,2]
[405298666,1770969041088,-241.87,0.00013286,2]
[405298667,1770969041111,-350.0,0.0001336,2]
[405298668,1770969041122,-302.0,0.000134,2]
[405298669,1770969041135,-308.0,0.000134,2]
[405298670,1770969041154,-350.0,0.00013408,2]
[405298671,1770969041165,-1337.0,0.00013414,2]
[405298672,1770969041177,-617.0,0.00013414,2]
[405298673,1770969041198,-3488.0,0.00013414,2]
[405298674,1770969041209,-1288.0,0.00013414,2]
[405298675,1770969041221,-150.0,0.00013414,2]
[405298676,1770969041241,-1274.0,0.00013414,2]
[405298677,1770969041252,-1208.0,0.00013414,2]
[405298678,1770969041266,-918.0,0.00013414,2]
[405298679,1770969041279,-412.0,0.00013414,2]
[405298680,1770969041290,-2450.0,0.00013414,2]
[405298681,1770969041303,-350.0,0.00013424,2]
[405298682,1770969041317,-3240.0,0.00013425,2]
[405298683,1770969041329,-2258.0,0.00013432,2]
[405298684,1770969041340,-9035.0,0.00013432,2]
[405298685,1770969041351,-3620.0,0.00013435,2]
[405298686,1770969041362,-711.93058663,0.00013458,2]
[405298687,1770969041374,-1000.0,0.000135,2]
[405298688,1770969041387,-160.0,0.00013506,2]
[405298689,1770969041402,-402.31,0.00013551,2]
[405298690,1770969041416,-205.56,0.00013561,2]
[405298691,1770969041428,-208.0,0.00013564,2]
[405298692,1770969041440,-238.4124,0.00013598,2]
[405298693,1770969041456,-10000.0,0.00013598,2]
[405298694,1770969041467,-350.0,0.0001365,2]
[405298695,1770969041482,-500.0,0.00013673,2]
[405298696,1770969041495,-500.0,0.00013673,2]
[405298697,1770969041509,-545.44406708,0.00013673,2]
[405298698,1770969041523,-542.88715451,0.00013673,2]
[405298699,1770969041539,-500.0,0.00013673,2]
[405298700,1770969041559,-500.0,0.00013673,2]
[405298701,1770969041574,-500.0,0.00013673,2]
[405298702,1770969041588,-500.0,0.00013673,2]
[405298703,1770969041603,-160.11669161,0.00013673,2]
[405298704,1770969041616,-500.0,0.00013673,2]
[405298705,1770969041630,-571.24633497,0.00013673,2]
[405298706,1770969041645,-500.0,0.00013673,2]
[405298707,1770969041659,-500.0,0.00013673,2]
[405298708,1770969041673,-474.38220435,0.00013673,2]
[405298709,1770969041687,-500.0,0.00013673,2]
[405298710,1770969041700,-151.85157988,0.00013673,2]
[405298711,1770969041713,-500.0,0.00013673,2]
[405298712,1770969041726,-500.0,0.00013673,2]
[405298713,1770969041737,-500.0,0.00013673,2]
[405298714,1770969041751,-500.0,0.00013673,2]
[405298715,1770969041763,-166.66792853,0.00013673,2]
[405298716,1770969041779,-500.0,0.00013673,2]
[405298717,1770969041793,-500.0,0.00013673,2]
[405298718,1770969041809,-1012.35719455,0.00013698,3]
[405298719,1770969041820,-500.0,0.00013698,2]
[405298720,1770969041831,-500.0,0.00013698,2]
[405298721,1770969041843,-500.0,0.00013698,2]
[405298722,1770969041855,-500.0,0.00013698,2]
[405298723,1770969041866,-500.0,0.00013698,2]
[405298724,1770969041877,-500.0,0.00013698,2]
[405298725,1770969041888,-501.88768419,0.00013698,2]
[405298726,1770969041899,-871.01,0.00013698,2]
[405298727,1770969041910,-871.01,0.00013698,2]
[405298728,1770969041921,-871.01,0.00013698,2]
[405298729,1770969041935,-871.01,0.00013698,2]
[405298730,1770969041948,-871.01,0.00013698,2]
[405298731,1770969041960,-871.01,0.00013698,2]
[405298732,1770969041971,-871.01,0.00013698,2]
[405298733,1770969041982,-871.01,0.00013698,2]
[405298734,1770969041993,-871.01,0.00013698,2]
[405298735,1770969042003,-871.01,0.00013698,2]
[405298736,1770969042012,-871.01,0.00013698,2]
[405298737,1770969042024,-500.0,0.00013698,2]
[405298738,1770969042035,-500.0,0.00013698,2]
[405298739,1770969042047,-500.0,0.00013698,2]
[405298740,1770969042060,-500.0,0.00013698,2]
[405298741,1770969042071,-500.0,0.00013698,2]
[405298742,1770969042083,-500.0,0.00013698,2]
[405298743,1770969042093,-500.0,0.00013698,2]
[405298744,1770969042104,-500.0,0.00013698,2]
[405298745,1770969042115,-500.0,0.00013698,2]
[405298746,1770969042129,-500.0,0.00013698,2]
[405298747,1770969042139,-500.0,0.00013698,2]
[405298748,1770969042149,-500.0,0.00013698,2]
[405298749,1770969042160,-500.0,0.00013698,2]
[405298750,1770969042170,-500.0,0.00013698,2]
[405298751,1770969042180,-500.0,0.00013698,2]
[405298752,1770969042191,-500.0,0.00013698,2]
[405298753,1770969042203,-500.0,0.00013698,2]
[405298754,1770969042213,-500.0,0.00013698,2]
[405298755,1770969042222,-500.0,0.00013698,2]
[405298756,1770969042233,-691.13,0.00013698,2]
[405298757,1770969042244,-691.13,0.00013698,2]
[405298758,1770969042255,-691.13,0.00013698,2]
[405298759,1770969042265,-691.13,0.00013698,2]
[405298760,1770969042278,-691.13,0.00013698,2]
[405298761,1770969042288,-691.13,0.00013698,2]
[405298762,1770969042297,-691.13,0.00013698,2]
[405298763,1770969042308,-691.13,0.00013698,2]
[405298764,1770969042319,-500.0,0.00013698,2]
[405298765,1770969042330,-505.53791634,0.00013698,2]
[405298766,1770969042342,-500.0,0.00013698,2]
[405298767,1770969042355,-500.0,0.00013698,2]
[405298768,1770969042366,-500.0,0.00013698,2]
[405298769,1770969042378,-500.0,0.00013698,2]
[405298770,1770969042388,-500.0,0.00013698,2]
[405298771,1770969042401,-500.0,0.00013698,2]
[405298772,1770969042414,-500.0,0.00013698,2]
[405298773,1770969042429,-500.0,0.00013698,2]
[405298774,1770969042442,-529.45,0.00013698,2]
[405298775,1770969042453,-529.45,0.00013698,2]
[405298776,1770969042465,-529.45,0.00013698,2]
[405298777,1770969042479,-529.45,0.00013698,2]
[405298778,1770969042493,-529.45,0.00013698,2]
[405298779,1770969042507,-529.45,0.00013698,2]
[405298780,1770969042518,-529.45,0.00013698,2]
[405298781,1770969042529,-529.45,0.00013698,2]
[405298782,1770969042543,-529.45,0.00013698,2]
[405298783,1770969042555,-529.45,0.00013698,2]
[405298784,1770969042567,-529.45,0.00013698,2]
[405298785,1770969042578,-1438.79,0.00013698,2]
[405298786,1770969042588,-1438.79,0.00013698,2]
[405298787,1770969042599,-1438.79,0.00013698,2]
[405298788,1770969042613,-1438.79,0.00013698,2]
[405298789,1770969042624,-1438.79,0.00013698,2]
[405298790,1770969042636,-1438.79,0.00013698,2]
[405298791,1770969042646,-1438.79,0.00013698,2]
[405298792,1770969042656,-1438.79,0.00013698,2]
[405298793,1770969042667,-500.0,0.00013698,2]
[405298794,1770969042679,-500.0,0.00013698,2]
[405298795,1770969042691,-500.0,0.00013698,2]
[405298796,1770969042701,-500.0,0.00013698,2]
[405298797,1770969042712,-500.0,0.00013698,2]
[405298798,1770969042722,-500.0,0.00013698,2]
[405298799,1770969042733,-500.0,0.00013698,2]
[405298800,1770969042743,-430.95470034,0.00013698,2]
[405298801,1770969042753,-500.0,0.00013698,2]
[405298802,1770969042763,-500.0,0.00013698,2]
[405298803,1770969042774,-500.0,0.00013698,2]
[405298804,1770969042787,-500.0,0.00013698,2]
[405298805,1770969042798,-500.0,0.00013698,2]
[405298806,1770969042811,-500.0,0.00013698,2]
[405298807,1770969042822,-500.0,0.00013698,2]
[405298808,1770969042834,-500.0,0.00013698,2]
[405298809,1770969042847,-500.0,0.00013698,2]
[405298810,1770969042857,-500.0,0.00013698,2]
[405298811,1770969042867,-500.0,0.00013698,2]
[405298812,1770969042877,-500.0,0.00013698,2]
[405298813,1770969042886,-500.0,0.00013698,2]
[405298814,1770969042895,-500.0,0.00013698,2]
[405298815,1770969042904,-500.0,0.00013698,2]
[405298816,1770969042914,-500.0,0.00013698,2]
[405298817,1770969042924,-500.0,0.00013698,2]
[405298818,1770969042934,-500.0,0.00013698,2]
[405298819,1770969042944,-500.0,0.00013698,2]
[405298820,1770969042953,-500.0,0.00013698,2]
[405298821,1770969042964,-500.0,0.00013698,2]
[405298822,1770969042974,-348.20164544,0.00013698,2]
[405298823,1770969042984,-591.31,0.00013698,2]
[405298824,1770969042994,-591.31,0.00013698,2]
[405298825,1770969043004,-591.31,0.00013698,2]
[405298826,1770969043015,-591.31,0.00013698,2]
[405298827,1770969043025,-591.31,0.00013698,2]
[405298828,1770969043035,-591.31,0.00013698,2]
[405298829,1770969043047,-591.31,0.00013698,2]
[405298830,1770969043057,-591.31,0.00013698,2]
[405298831,1770969043068,-591.31,0.00013698,2]
[405298832,1770969043079,-591.31,0.00013698,2]
[405298833,1770969043089,-591.31,0.00013698,2]
[405298834,1770969043100,-526.46476323,0.00013698,2]
[405298835,1770969043110,-1197.3,0.00013698,2]
[405298836,1770969043121,-1197.3,0.00013698,2]
[405298837,1770969043131,-1197.3,0.00013698,2]
[405298838,1770969043142,-1197.3,0.00013698,2]
[405298839,1770969043152,-1197.3,0.00013698,2]
[405298840,1770969043163,-1197.3,0.00013698,2]
[405298841,1770969043173,-1197.3,0.00013698,2]
[405298842,1770969043183,-1197.3,0.00013698,2]
[405298843,1770969043194,-1197.3,0.00013698,2]
[405298844,1770969043204,-1197.3,0.00013698,2]
[405298845,1770969043215,-1197.3,0.00013698,2]
[405298846,1770969043226,-500.0,0.00013698,2]
[405298847,1770969043237,-500.0,0.00013698,2]
[405298848,1770969043247,-500.0,0.00013698,2]
[405298849,1770969043258,-500.0,0.00013698,2]
[405298850,1770969043268,-500.0,0.00013698,2]
[405298851,1770969043279,-500.0,0.00013698,2]
[405298852,1770969043289,-500.0,0.00013698,2]
[405298853,1770969043300,-500.0,0.00013698,2]
[405298854,1770969043310,-500.0,0.00013698,2]
[405298855,1770969043321,-500.0,0.00013698,2]
[405298856,1770969043331,-500.0,0.00013698,2]
[405298857,1770969043342,-581.0,0.00013698,2]
[405298858,1770969043352,-581.0,0.00013698,2]
[405298859,1770969043363,-581.0,0.00013698,2]
[405298860,1770969043373,-581.0,0.00013698,2]
[405298861,1770969043384,-581.0,0.00013698,2]
[405298862,1770969043394,-581.0,0.00013698,2]
[405298863,1770969043404,-581.0,0.00013698,2]
[405298864,1770969043414,-581.0,0.00013698,2]
[405298865,1770969043424,-866.73,0.00013698,2]
[405298866,1770969043436,-866.73,0.00013698,2]
[405298867,1770969043447,-866.73,0.00013698,2]
[405298868,1770969043459,-866.73,0.00013698,2]
[405298869,1770969043470,-866.73,0.00013698,2]
[405298870,1770969043480,-866.73,0.00013698,2]
[405298871,1770969043491,-866.73,0.00013698,2]
[405298872,1770969043500,-866.73,0.00013698,2]
[405298873,1770969043511,-500.0,0.00013698,2]
[405298874,1770969043521,-500.0,0.00013698,2]
[405298875,1770969043532,-500.0,0.00013698,2]
[405298876,1770969043544,-500.0,0.00013698,2]
[405298877,1770969043555,-500.0,0.00013698,2]
[405298878,1770969043566,-500.0,0.00013698,2]
[405298879,1770969043578,-500.0,0.00013698,2]
[405298880,1770969043588,-500.0,0.00013698,2]
[405298881,1770969043599,-500.0,0.00013698,2]
[405298882,1770969043612,-500.0,0.00013698,2]
[405298883,1770969043884,-500.0,0.00013698,2]
[405298884,1770969043899,-500.0,0.00013698,2]